fUSD/lending_fUSD_20241222
["ID","MTS","AMOUNT","RATE_DAILY","PERIOD"]
[346259794,1734844252072,-1606.33,0.00019452,2]
[346259795,1734844252081,-1268.54,0.00019452,2]
[346259796,1734844252091,-470.0,0.00019452,2]
[346259797,1734844252100,-10563.72,0.00019452,2]
[346259798,1734844252110,-500.0,0.00019452,2]
[346259799,1734844252119,-503.16387735,0.00019452,2]
[346259800,1734844252128,-737.51,0.00019452,2]
[346259801,1734844252137,-22990.76,0.00019452,2]
[346259802,1734844252147,-500.0,0.00019452,2]
[346259803,1734844252156,-500.0,0.00019452,2]
[346259804,1734844252174,-500.0,0.00019452,2]
[346259805,1734844252190,-2853.02,0.00019452,2]
[346259806,1734844252204,-500.0,0.00019452,2]
[346259807,1734844252220,-502.27,0.00019452,2]
[346259808,1734844252237,-500.0,0.00019452,2]
[346259809,1734844252252,-500.0,0.00019452,2]
[346259810,1734844252264,-500.0,0.00019452,2]
[346259811,1734844252280,-500.0,0.00019452,2]
[346259812,1734844252295,-500.0,0.00019452,2]
[346259813,1734844252311,-5195.81,0.00019452,2]
[346259814,1734844252327,-500.0,0.00019452,2]
[346259815,1734844252342,-500.0,0.00019452,2]
[346259816,1734844252358,-1900.44,0.00019452,2]
[346259817,1734844252373,-2175.77,0.00019452,2]
[346259818,1734844252389,-500.0,0.00019452,2]
[346259819,1734844252403,-4206.8,0.00019452,2]
[346259820,1734844252415,-6887.3,0.00019452,2]
[346259821,1734844252428,-500.0,0.00019452,2]
[346259822,1734844252444,-366.75455315,0.00019452,2]
[346259823,1734844252457,-4347.58,0.00019452,2]
[346259824,1734844252472,-500.0,0.00019452,2]
[346259825,1734844252486,-500.0,0.00019452,2]
[346259826,1734844252497,-543.1,0.00019452,2]
[346259827,1734844252510,-4312.28,0.00019452,2]
[346259828,1734844252523,-502.86970245,0.00019452,2]
[346259829,1734844252535,-1233.17,0.00019452,2]
[346259830,1734844252548,-503.73017107,0.00019452,2]
[346259831,1734844252560,-500.0,0.00019452,2]
[346259832,1734844252573,-926.85,0.00019452,2]
[346259833,1734844252585,-5343.64,0.00019452,2]
[346259834,1734844252598,-500.0,0.00019452,2]
[346259835,1734844252610,-557.33,0.00019452,2]
[346259836,1734844252623,-500.0,0.00019452,2]
[346259837,1734844252636,-500.0,0.00019452,2]
[346259838,1734844252648,-523.31,0.00019452,2]
[346259839,1734844252661,-500.0,0.00019452,2]
[346259840,1734844252676,-500.0,0.00019452,2]
[346259841,1734844252689,-2045.25,0.00019452,2]
[346259842,1734844252702,-597.56,0.00019452,2]
[346259843,1734844252715,-878.94,0.00019452,2]
[346259844,1734844252727,-500.0,0.00019452,2]
[346259845,1734844252740,-500.0,0.00019452,2]
[346259846,1734844252753,-500.0,0.00019452,2]
[346259847,1734844252768,-500.0,0.00019452,2]
[346259848,1734844252781,-647.0,0.00019452,2]
[346259849,1734844252793,-500.0,0.00019452,2]
[346259850,1734844252808,-500.0,0.00019452,2]
[346259851,1734844252820,-500.0,0.00019452,2]
[346259852,1734844252832,-500.0,0.00019452,2]
[346259853,1734844252845,-506.03587241,0.00019452,2]
[346259854,1734844252858,-14462.59,0.00019452,2]
[346259855,1734844252871,-7991.52,0.00019452,2]
[346259856,1734844252884,-500.0,0.00019452,2]
[346259857,1734844252896,-500.0,0.00019452,2]
[346259858,1734844252908,-500.0,0.00019452,2]
[346259859,1734844252921,-500.0,0.00019452,2]
[346259860,1734844252933,-933.66,0.00019452,2]
[346259861,1734844252946,-500.0,0.00019452,2]
[346259862,1734844252961,-500.0,0.00019452,2]
[346259863,1734844252973,-359.26140375,0.00019452,2]
[346259864,1734844252986,-1835.18,0.00019452,2]
[346259865,1734844252998,-1061.14,0.00019452,2]
[346259866,1734844253011,-500.0,0.00019452,2]
[346259867,1734844253024,-500.0,0.00019452,2]
[346259868,1734844253037,-2601.05,0.00019452,2]
[346259869,1734844253050,-500.0,0.00019452,2]
[346259870,1734844253063,-500.0,0.00019452,2]
[346259871,1734844253075,-3646.09,0.00019452,2]
[346259872,1734844253089,-500.0,0.00019452,2]
[346259873,1734844253102,-500.0,0.00019452,2]
[346259874,1734844253114,-500.0,0.00019452,2]
[346259875,1734844253126,-500.0,0.00019452,2]
[346259876,1734844253139,-500.0,0.00019452,2]
[346259877,1734844253151,-935.2,0.00019452,2]
[346259878,1734844253164,-500.0,0.00019452,2]
[346259879,1734844253176,-500.0,0.00019452,2]
[346259880,1734844253189,-500.0,0.00019452,2]
[346259881,1734844253202,-500.0,0.00019452,2]
[346259882,1734844253217,-524.91796862,0.00019452,2]
[346259883,1734844253231,-3089.84,0.00019452,2]
[346259884,1734844253245,-517.93441465,0.00019452,2]
[346259885,1734844253258,-500.0,0.00019452,2]
[346259886,1734844253271,-824.72,0.00019452,2]
[346259887,1734844253282,-500.0,0.00019452,2]
[346259888,1734844253291,-507.9819971,0.00019452,2]
[346259889,1734844253300,-625.32,0.00019452,2]
[346259890,1734844253309,-500.0,0.00019452,2]
[346259891,1734844253318,-500.0,0.00019452,2]
[346259892,1734844253328,-1701.81444852,0.00019453,2]
[346259893,1734844253338,-1701.81444852,0.00019453,2]
[346259894,1734844253348,-418.77528031,0.00019459,2]
[346259895,1734844253358,-1701.81444852,0.00019464,2]
[346259896,1734844253368,-418.77528031,0.00019472,2]
[346259897,1734844253378,-200.0,0.00019474,2]
[346259898,1734844253389,-33552.95445007,0.00019474,2]
[346259899,1734844253398,-495.73308461,0.00019475,2]
[346259900,1734844253408,-2311.15071303,0.00019475,2]
[346259901,1734844253418,-418.77528031,0.00019477,2]
[346259902,1734844253427,-1742.46339135,0.00019478,2]
[346259903,1734844253437,-431.27219172,0.00019479,2]
[346259904,1734844253446,-236.57434847,0.00019481,2]
[346259905,1734844253697,-418.77528031,0.00019481,2]
[346259906,1734844253726,-1701.81444852,0.00019482,2]
[346259907,1734844253740,-236.57434847,0.00019483,2]
[346259908,1734844253753,-2311.15071303,0.00019485,2]
[346259909,1734844253763,-495.73308461,0.00019485,2]
[346259910,1734844253772,-236.57434847,0.00019486,2]
[346259911,1734844253782,-1701.81444852,0.00019486,2]
[346259912,1734844253791,-200.0,0.00019486,2]
[346259913,1734844253799,-431.27219172,0.00019487,2]
[346259914,1734844253809,-2311.15071303,0.00019491,2]
[346259915,1734844253818,-1101.80489096,0.00019493,2]
[346259916,1734844253828,-270.4974656,0.00019493,2]
[346259917,1734844253837,-495.73308461,0.00019494,2]
[346259918,1734844253846,-200.0,0.00019496,2]
[346259919,1734844253854,-911.20269162,0.00019497,2]
[346259920,1734844253863,-418.77528031,0.00019498,2]
[346259921,1734844253872,-152.0,0.0001952,4]
[346259922,1734844253881,-151.437759,0.00019537,2]
[346259923,1734844253890,-150.0,0.00019547,2]
[346259924,1734844253899,-150.0,0.00019547,2]
[346259925,1734844253908,-200.78641755,0.00019547,2]
[346259926,1734844253917,-1284.0,0.00019547,2]
[346259927,1734844253926,-755.0,0.00019547,2]
[346259928,1734844253934,-202.0,0.0001956,2]
[346259929,1734844253943,-1101.80489096,0.00019562,2]
[346259930,1734844253952,-270.4974656,0.00019562,2]
[346259931,1734844253963,-1000.0,0.00019595,2]
[346259932,1734844253972,-2875.34365992,0.000196,2]
[346259933,1734844253981,-888.23655769,0.000196,2]
[346259934,1734844253992,-157.84153206,0.000196,2]
[346259935,1734844254001,-508.11855997,0.000196,2]
[346259936,1734844254010,-1101.80489096,0.00019631,2]
[346259937,1734844254019,-270.4974656,0.00019631,2]
[346259938,1734844254028,-150.42,0.00019635,2]
[346259939,1734844254038,-519.5,0.00019699,2]
[346259940,1734844254047,-681.09,0.00019699,2]
[346259941,1734844254056,-52034.82446903,0.000197,15]
[346259942,1734844254066,-1101.80489096,0.000197,2]
[346259943,1734844254075,-157.84153206,0.000197,2]
[346259944,1734844254084,-270.4974656,0.000197,2]
[346259945,1734844254093,-163.122211,0.00019724,2]
[346259946,1734844254103,-163.122211,0.00019724,3]
[346259947,1734844254112,-163.122211,0.00019724,2]
[346259948,1734844254121,-519.5,0.00019725,2]
[346259949,1734844254130,-681.09,0.00019725,2]
[346259950,1734844254140,-1192.77,0.00019726,2]
[346259951,1734844254149,-221.666737,0.00019726,2]
[346259952,1734844254158,-863.660607,0.00019726,2]
[346259953,1734844254168,-500.0,0.00019726,2]
[346259954,1734844254177,-500.0,0.00019726,2]
[346259955,1734844254186,-500.0,0.00019726,2]
[346259956,1734844254198,-500.0,0.00019726,2]
[346259957,1734844254208,-500.0,0.00019726,2]
[346259958,1734844254217,-500.0,0.00019726,2]
[346259959,1734844254226,-500.0,0.00019726,2]
[346259960,1734844254235,-500.0,0.00019726,2]
[346259961,1734844254244,-500.0,0.00019726,2]
[346259962,1734844254253,-500.0,0.00019726,2]
[346259963,1734844254263,-500.0,0.00019726,2]
[346259964,1734844254272,-500.0,0.00019726,2]
[346259965,1734844254281,-500.0,0.00019726,2]
[346259966,1734844254291,-500.0,0.00019726,2]
[346259967,1734844254299,-501.72453333,0.00019726,2]
[346259968,1734844254308,-614.83,0.00019726,2]
[346259969,1734844254318,-504.43561542,0.00019726,2]
[346259970,1734844254327,-500.0,0.00019726,2]
[346259971,1734844254336,-500.0,0.00019726,2]
[346259972,1734844254345,-500.0,0.00019726,2]
[346259973,1734844254354,-500.0,0.00019726,2]
[346259974,1734844254363,-507.65362626,0.00019726,2]
[346259975,1734844254372,-500.0,0.00019726,2]
[346259976,1734844254381,-500.0,0.00019726,2]
[346259977,1734844254391,-413.41571742,0.00019726,2]
[346259978,1734844254401,-327.97951016,0.00019726,2]
[346259979,1734844254413,-500.0,0.00019726,2]
[346259980,1734844254424,-500.0,0.00019726,2]
[346259981,1734844254433,-500.0,0.00019726,2]
[346259982,1734844254442,-500.0,0.00019726,2]
[346259983,1734844254451,-500.0,0.00019726,2]
[346259984,1734844254463,-505.40944091,0.00019726,2]
[346259985,1734844254472,-500.0,0.00019726,2]
[346259986,1734844254481,-500.0,0.00019726,2]
[346259987,1734844254490,-153.49182692,0.00019726,2]
[346259988,1734844254499,-500.0,0.00019726,2]
[346259989,1734844254508,-500.0,0.00019726,2]
[346259990,1734844254517,-541.99,0.00019726,2]
[346259991,1734844254526,-500.0,0.00019726,2]
[346259992,1734844254535,-500.0,0.00019726,2]
[346259993,1734844254544,-500.0,0.00019726,2]
[346259994,1734844254553,-500.0,0.00019726,2]
[346259995,1734844254562,-500.0,0.00019726,2]
[346259996,1734844254571,-500.0,0.00019726,2]
[346259997,1734844254580,-500.0,0.00019726,2]
[346259998,1734844254589,-500.0,0.00019726,2]
[346259999,1734844254599,-500.0,0.00019726,2]
[346260000,1734844254609,-588.17953798,0.00019726,2]
[346260001,1734844254618,-500.0,0.00019726,2]
[346260002,1734844254627,-453.05551077,0.00019726,2]
[346260003,1734844254636,-500.0,0.00019726,2]
[346260004,1734844254645,-500.0,0.00019726,2]
[346260005,1734844254654,-500.0,0.00019726,2]
[346260006,1734844254663,-500.0,0.00019726,2]
[346260007,1734844254672,-500.0,0.00019726,2]
[346260008,1734844254681,-500.0,0.00019726,2]
[346260009,1734844254690,-500.0,0.00019726,2]
[346260010,1734844254699,-500.0,0.00019726,2]
[346260011,1734844254709,-500.0,0.00019726,2]
[346260012,1734844254719,-500.0,0.00019726,2]
[346260013,1734844254728,-500.0,0.00019726,2]
[346260014,1734844254737,-500.0,0.00019726,2]
[346260015,1734844254746,-500.0,0.00019726,2]
[346260016,1734844254760,-500.0,0.00019726,2]
[346260017,1734844254769,-606.51,0.00019726,2]
[346260018,1734844254778,-500.0,0.00019726,2]
[346260019,1734844254787,-500.0,0.00019726,2]
[346260020,1734844254797,-1256.27,0.00019726,2]
[346260021,1734844254806,-500.0,0.00019726,2]
[346260022,1734844254815,-500.0,0.00019726,2]
[346260023,1734844254824,-776.07,0.00019726,2]
[346260024,1734844254833,-500.0,0.00019726,2]
[346260025,1734844254843,-500.0,0.00019726,2]
[346260026,1734844254853,-607.46,0.00019726,2]
[346260027,1734844254862,-500.0,0.00019726,2]
[346260028,1734844254871,-500.0,0.00019726,2]
[346260029,1734844254879,-500.0,0.00019726,2]
[346260030,1734844254888,-500.0,0.00019726,2]
[346260031,1734844254897,-500.0,0.00019726,2]
[346260032,1734844254906,-579.37616955,0.00019726,2]
[346260033,1734844254918,-500.0,0.00019726,2]
[346260034,1734844254928,-500.0,0.00019726,2]
[346260035,1734844254938,-500.0,0.00019726,2]
[346260036,1734844254949,-195.25771925,0.00019726,2]
[346260037,1734844254959,-500.0,0.00019726,2]
[346260038,1734844254968,-2553.98,0.00019726,2]
[346260039,1734844254978,-500.0,0.00019726,2]
[346260040,1734844254987,-500.0,0.00019726,2]
[346260041,1734844254997,-500.0,0.00019726,2]
[346260042,1734844255006,-510.13,0.00019726,2]
[346260043,1734844255015,-500.0,0.00019726,2]
[346260044,1734844255024,-500.0,0.00019726,2]
[346260045,1734844255034,-500.0,0.00019726,2]
[346260046,1734844255043,-500.0,0.00019726,2]
[346260047,1734844255052,-500.0,0.00019726,2]
[346260048,1734844255061,-500.0,0.00019726,2]
[346260049,1734844255071,-500.0,0.00019726,2]
[346260050,1734844255081,-501.09660354,0.00019726,2]
[346260051,1734844255089,-747.04,0.00019726,2]
[346260052,1734844255100,-500.0,0.00019726,2]
[346260053,1734844255109,-500.0,0.00019726,2]
[346260054,1734844255119,-500.0,0.00019726,2]
[346260055,1734844255128,-500.0,0.00019726,2]
[346260056,1734844255137,-500.0,0.00019726,2]
[346260057,1734844255146,-500.0,0.00019726,2]
[346260058,1734844255155,-829.75,0.00019726,2]
[346260059,1734844255165,-1171.85,0.00019726,2]
[346260060,1734844255176,-500.0,0.00019726,2]
[346260061,1734844255185,-1363.17,0.00019726,2]
[346260062,1734844255194,-500.0,0.00019726,2]
[346260063,1734844255205,-500.0,0.00019726,2]
[346260064,1734844255216,-500.0,0.00019726,2]
[346260065,1734844255225,-500.0,0.00019726,2]
[346260066,1734844255235,-500.21,0.00019726,2]
[346260067,1734844255244,-500.0,0.00019726,2]
[346260068,1734844255254,-500.0,0.00019726,2]
[346260069,1734844255263,-500.0,0.00019726,2]
[346260070,1734844255273,-500.0,0.00019726,2]
[346260071,1734844255283,-500.0,0.00019726,2]
[346260072,1734844255293,-500.0,0.00019726,2]
[346260073,1734844255304,-500.0,0.00019726,2]
[346260074,1734844255313,-503.40488498,0.00019726,2]
[346260075,1734844255323,-673.25,0.00019726,2]
[346260076,1734844255334,-500.0,0.00019726,2]
[346260077,1734844255343,-500.0,0.00019726,2]
[346260078,1734844255354,-500.0,0.00019726,2]
[346260079,1734844255363,-500.0,0.00019726,2]
[346260080,1734844255373,-567.9,0.00019726,2]
[346260081,1734844255382,-500.0,0.00019726,2]
[346260082,1734844255391,-500.0,0.00019726,2]
[346260083,1734844255400,-500.0,0.00019726,2]
[346260084,1734844255409,-500.0,0.00019726,2]
[346260085,1734844255418,-500.0,0.00019726,2]
[346260086,1734844255427,-503.41,0.00019726,2]
[346260087,1734844255436,-500.0,0.00019726,2]
[346260088,1734844255445,-500.0,0.00019726,2]
[346260089,1734844255454,-500.0,0.00019726,2]
[346260090,1734844255464,-500.0,0.00019726,2]
[346260091,1734844255473,-500.0,0.00019726,2]
[346260092,1734844255482,-1280.71,0.00019726,2]
[346260093,1734844255506,-473.97924518,0.00019726,2]
[346260094,1734844255514,-500.0,0.00019726,2]
[346260095,1734844255523,-500.0,0.00019726,2]
[346260096,1734844255532,-500.0,0.00019726,2]
[346260097,1734844255541,-362.96,0.00019726,2]
[346260098,1734844255550,-500.0,0.00019726,2]
[346260099,1734844255559,-842.9,0.00019726,2]
[346260100,1734844255568,-500.0,0.00019726,2]
[346260101,1734844255577,-500.0,0.00019726,2]
[346260102,1734844255586,-500.0,0.00019726,2]
[346260103,1734844255596,-500.0,0.00019726,2]
[346260104,1734844255605,-500.0,0.00019726,2]
[346260105,1734844255616,-719.69,0.00019726,2]
[346260106,1734844255627,-500.0,0.00019726,2]
[346260107,1734844255640,-500.0,0.00019726,2]
[346260108,1734844255650,-500.0,0.00019726,2]
[346260109,1734844255660,-500.0,0.00019726,2]
[346260110,1734844255669,-500.0,0.00019726,2]
[346260111,1734844255678,-745.04,0.00019726,2]
[346260112,1734844255689,-500.0,0.00019726,2]
[346260113,1734844255699,-500.0,0.00019726,2]
[346260114,1734844255710,-500.0,0.00019726,2]
[346260115,1734844255719,-500.0,0.00019726,2]
[346260116,1734844255728,-500.0,0.00019726,2]
[346260117,1734844255739,-500.0,0.00019726,2]
[346260118,1734844255748,-500.0,0.00019726,2]
[346260119,1734844255761,-500.0,0.00019726,2]
[346260120,1734844255770,-1954.26,0.00019726,2]
[346260121,1734844255781,-500.0,0.00019726,2]
[346260122,1734844255790,-500.0,0.00019726,2]
[346260123,1734844255800,-500.0,0.00019726,2]
[346260124,1734844255809,-569.74,0.00019726,2]
[346260125,1734844255818,-473.96749718,0.00019726,2]
[346260126,1734844255830,-500.0,0.00019726,2]
[346260127,1734844255840,-500.0,0.00019726,2]
[346260128,1734844255850,-500.0,0.00019726,2]
[346260129,1734844255861,-592.32781216,0.00019726,2]
[346260130,1734844255871,-500.0,0.00019726,2]
[346260131,1734844255880,-500.0,0.00019726,2]
[346260132,1734844255892,-504.03875687,0.00019726,2]
[346260133,1734844255902,-500.0,0.00019726,2]
[346260134,1734844255912,-500.0,0.00019726,2]
[346260135,1734844255922,-500.0,0.00019726,2]
[346260136,1734844255931,-500.0,0.00019726,2]
[346260137,1734844255941,-500.0,0.00019726,2]
[346260138,1734844255950,-500.0,0.00019726,2]
[346260139,1734844255959,-556.78,0.00019726,2]
[346260140,1734844255968,-1151.4,0.00019726,2]
[346260141,1734844255977,-500.0,0.00019726,2]
[346260142,1734844255987,-500.0,0.00019726,2]
[346260143,1734844255996,-500.0,0.00019726,2]
[346260144,1734844256006,-500.0,0.00019726,2]
[346260145,1734844256016,-500.0,0.00019726,2]
[346260146,1734844256025,-500.0,0.00019726,2]
[346260147,1734844256036,-500.0,0.00019726,2]
[346260148,1734844256045,-267.0826604,0.00019726,2]
[346260149,1734844256054,-500.0,0.00019726,2]
[346260150,1734844256063,-500.0,0.00019726,2]
[346260151,1734844256074,-500.0,0.00019726,2]
[346260152,1734844256083,-1408.14,0.00019726,2]
[346260153,1734844256095,-500.0,0.00019726,2]
[346260154,1734844256104,-492.68224703,0.00019726,2]
[346260155,1734844256113,-500.0,0.00019726,2]
[346260156,1734844256123,-500.0,0.00019726,2]
[346260157,1734844256132,-500.0,0.00019726,2]
[346260158,1734844256141,-612.24,0.00019726,2]
[346260159,1734844256151,-500.0,0.00019726,2]
[346260160,1734844256160,-500.0,0.00019726,2]
[346260161,1734844256169,-500.0,0.00019726,2]
[346260162,1734844256180,-500.0,0.00019726,2]
[346260163,1734844256190,-500.0,0.00019726,2]
[346260164,1734844256199,-714.99,0.00019726,2]
[346260165,1734844256209,-500.0,0.00019726,2]
[346260166,1734844256218,-731.44,0.00019726,2]
[346260167,1734844256228,-500.0,0.00019726,2]
[346260168,1734844256237,-500.0,0.00019726,2]
[346260169,1734844256247,-500.0,0.00019726,2]
[346260170,1734844256256,-500.0,0.00019726,2]
[346260171,1734844256265,-500.0,0.00019726,2]
[346260172,1734844256274,-500.0,0.00019726,2]
[346260173,1734844256283,-580.58,0.00019726,2]
[346260174,1734844256292,-457.46,0.00019726,2]
[346260175,1734844256301,-500.0,0.00019726,2]
[346260176,1734844256310,-500.0,0.00019726,2]
[346260177,1734844256319,-500.0,0.00019726,2]
[346260178,1734844256328,-1690.67,0.00019726,2]
[346260179,1734844256337,-500.0,0.00019726,2]
[346260180,1734844256347,-500.0,0.00019726,2]
[346260181,1734844256356,-500.0,0.00019726,2]
[346260182,1734844256365,-806.35,0.00019726,2]
[346260183,1734844256376,-500.0,0.00019726,2]
[346260184,1734844256385,-500.0,0.00019726,2]
[346260185,1734844256395,-500.0,0.00019726,2]
[346260186,1734844256406,-500.0,0.00019726,2]
[346260187,1734844256416,-500.0,0.00019726,2]
[346260188,1734844256426,-500.0,0.00019726,2]
[346260189,1734844256435,-500.0,0.00019726,2]
[346260190,1734844256444,-1825.93,0.00019726,2]
[346260191,1734844256454,-500.0,0.00019726,2]
[346260192,1734844256463,-500.0,0.00019726,2]
[346260193,1734844256473,-500.0,0.00019726,2]
[346260194,1734844256482,-500.0,0.00019726,2]
[346260195,1734844256491,-500.0,0.00019726,2]
[346260196,1734844256500,-500.0,0.00019726,2]
[346260197,1734844256510,-556.88,0.00019726,2]
[346260198,1734844256519,-522.99,0.00019726,2]
[346260199,1734844256527,-500.0,0.00019726,2]
[346260200,1734844256536,-933.8,0.00019726,2]
[346260201,1734844256546,-500.0,0.00019726,2]
[346260202,1734844256557,-1294.83,0.00019726,2]
[346260203,1734844256567,-159.503366,0.00019726,2]
[346260204,1734844256577,-500.0,0.00019726,2]
[346260205,1734844256587,-500.0,0.00019726,2]
[346260206,1734844256597,-1201.89,0.00019726,2]
[346260207,1734844256607,-500.0,0.00019726,2]
[346260208,1734844256619,-942.83,0.00019726,2]
[346260209,1734844256629,-940.33,0.00019726,2]
[346260210,1734844256639,-500.0,0.00019726,2]
[346260211,1734844256648,-1141.46,0.00019726,2]
[346260212,1734844256657,-624.66,0.00019726,2]
[346260213,1734844256666,-696.59,0.00019726,2]
[346260214,1734844256675,-500.0,0.00019726,2]
[346260215,1734844256684,-884.44,0.00019726,2]
[346260216,1734844256695,-500.0,0.00019726,2]
[346260217,1734844256706,-500.0,0.00019726,2]
[346260218,1734844256717,-500.0,0.00019726,2]
[346260219,1734844256726,-500.0,0.00019726,2]
[346260220,1734844256735,-500.0,0.00019726,2]
[346260221,1734844256746,-500.0,0.00019726,2]
[346260222,1734844256759,-317.44969518,0.00019726,2]
[346260223,1734844256768,-500.0,0.00019726,2]
[346260224,1734844256778,-157.447795,0.00019726,2]
[346260225,1734844256790,-933.01,0.00019726,2]
[346260226,1734844256799,-500.0,0.00019726,2]
[346260227,1734844256808,-196.10382717,0.00019726,2]
[346260228,1734844256817,-500.0,0.00019726,2]
[346260229,1734844256827,-500.0,0.00019726,2]
[346260230,1734844256836,-539.87,0.00019726,2]
[346260231,1734844256845,-500.0,0.00019726,2]
[346260232,1734844256854,-500.0,0.00019726,2]
[346260233,1734844256863,-500.0,0.00019726,2]
[346260234,1734844256872,-500.0,0.00019726,2]
[346260235,1734844256881,-697.84,0.00019726,2]
[346260236,1734844257010,-1950.3,0.00019726,2]
[346260237,1734844257044,-500.0,0.00019726,2]
[346260238,1734844257053,-500.0,0.00019726,2]
[346260239,1734844257063,-500.0,0.00019726,2]
[346260240,1734844257072,-6416.08,0.00019726,2]
[346260241,1734844257086,-511.48,0.00019726,2]
[346260242,1734844257095,-500.0,0.00019726,2]
[346260243,1734844257105,-500.0,0.00019726,2]
[346260244,1734844257114,-500.0,0.00019726,2]
[346260245,1734844257124,-2463.0,0.00019726,2]
[346260246,1734844257134,-500.0,0.00019726,2]
[346260247,1734844257143,-500.0,0.00019726,2]
[346260248,1734844257153,-548.25,0.00019726,2]
[346260249,1734844257162,-2343.45,0.00019726,2]
[346260250,1734844257172,-500.0,0.00019726,2]
[346260251,1734844257181,-1477.34,0.00019726,2]
[346260252,1734844257191,-843.1,0.00019726,2]
[346260253,1734844257201,-500.0,0.00019726,2]
[346260254,1734844257212,-773.52,0.00019726,2]
[346260255,1734844257221,-500.0,0.00019726,2]
[346260256,1734844257230,-1216.02,0.00019726,2]
[346260257,1734844257240,-3482.64,0.00019726,2]
[346260258,1734844257249,-1269.95,0.00019726,2]
[346260259,1734844257259,-6516.01,0.00019726,2]
[346260260,1734844257268,-500.0,0.00019726,2]
[346260261,1734844257278,-500.0,0.00019726,2]
[346260262,1734844257287,-500.0,0.00019726,2]
[346260263,1734844257296,-513.08608611,0.00019726,2]
[346260264,1734844257306,-18985.3,0.00019726,2]
[346260265,1734844257315,-1002.14,0.00019726,2]
[346260266,1734844257325,-686.53,0.00019726,2]
[346260267,1734844257334,-500.0,0.00019726,2]
[346260268,1734844257344,-500.0,0.00019726,2]
[346260269,1734844257353,-1887.03,0.00019726,2]
[346260270,1734844257362,-500.0,0.00019726,2]
[346260271,1734844257371,-1273.16,0.00019726,2]
[346260272,1734844257381,-500.0,0.00019726,2]
[346260273,1734844257391,-500.0,0.00019726,2]
[346260274,1734844257400,-500.0,0.00019726,2]
[346260275,1734844257410,-867.27,0.00019726,2]
[346260276,1734844257419,-1269.55,0.00019726,2]
[346260277,1734844257428,-500.0,0.00019726,2]
[346260278,1734844257438,-820.19,0.00019726,2]
[346260279,1734844257447,-500.0,0.00019726,2]
[346260280,1734844257457,-929.28,0.00019726,2]
[346260281,1734844257470,-747.7,0.00019726,2]
[346260282,1734844257480,-8672.48,0.00019726,2]
[346260283,1734844257490,-500.0,0.00019726,2]
[346260284,1734844257500,-500.0,0.00019726,2]
[346260285,1734844257511,-742.75,0.00019726,2]
[346260286,1734844257520,-500.0,0.00019726,2]
[346260287,1734844257529,-903.0,0.00019726,2]
[346260288,1734844257539,-4651.42,0.00019726,2]
[346260289,1734844257548,-500.0,0.00019726,2]
[346260290,1734844257557,-516.51819331,0.00019726,2]
[346260291,1734844257567,-500.0,0.00019726,2]
[346260292,1734844257576,-757.63,0.00019726,2]
[346260293,1734844257586,-500.0,0.00019726,2]